fUST/lending_fUST_20250212
["ID","MTS","AMOUNT","RATE_DAILY","PERIOD"]
[352748521,1739289934464,1500.0,8.214e-05,2]
[352748582,1739290232305,-780.2937418,9.383e-05,2]
[352748584,1739290232315,-250.0,9.499e-05,2]
[352748586,1739290232325,-5204.27339982,9.794e-05,2]
[352748588,1739290232334,-7630.20360514,0.00010001,2]
[352748590,1739290232344,-2600.0,0.00010102,2]
[352748592,1739290232354,-215.860309,0.000102,2]
[352748594,1739290232364,-504.2897485,0.00010395,2]
[352748596,1739290232373,-4578.00082972,0.00010421,2]
[352748598,1739290232383,-839.51433284,0.00010499,2]
[352748600,1739290232393,-251.98994422,0.00010499,2]
[352748602,1739290232402,-253.66747766,0.00010499,2]
[352748604,1739290232413,-500.0,0.00010499,2]
[352748606,1739290232422,-500.0,0.00010499,2]
[352748608,1739290232431,-570.0,0.00010499,2]
[352748610,1739290232441,-500.0,0.00010499,2]
[352748612,1739290232450,-500.0,0.00010499,2]
[352748614,1739290232460,-500.0,0.00010499,2]
[352748616,1739290232469,-500.0,0.00010499,2]
[352748618,1739290232479,-500.0,0.00010499,2]
[352748620,1739290232488,-500.0,0.00010499,2]
[352748622,1739290232498,-500.0,0.00010499,2]
[352748624,1739290232507,-428.30663073,0.00010499,2]
[352748626,1739290232516,-500.0,0.00010499,2]
[352748628,1739290232528,-500.0,0.00010499,2]
[352748630,1739290232537,-500.0,0.00010499,2]
[352748632,1739290232547,-500.0,0.00010499,2]
[352748634,1739290232556,-500.0,0.00010499,2]
[352748636,1739290232566,-500.0,0.00010499,2]
[352748638,1739290232576,-500.0,0.00010499,2]
[352748640,1739290232585,-500.0,0.00010499,2]
[352748642,1739290232595,-500.0,0.00010499,2]
[352748644,1739290232604,-500.0,0.00010499,2]
[352748646,1739290232614,-500.0,0.00010499,2]
[352748648,1739290232624,-500.0,0.00010499,2]
[352748650,1739290232634,-500.0,0.00010499,2]
[352748652,1739290232644,-500.0,0.00010499,2]
[352748654,1739290232653,-500.0,0.00010499,2]
[352748656,1739290232663,-500.0,0.00010499,2]
[352748658,1739290232673,-500.0,0.00010499,2]
[352748660,1739290232682,-250.0,0.00010499,2]
[352748662,1739290232692,-584.5017388,0.00010499,2]
[352748664,1739290232701,-500.0,0.00010499,2]
[352748666,1739290232711,-500.0,0.00010499,2]
[352748668,1739290232720,-500.0,0.00010499,2]
[352748670,1739290232730,-500.0,0.00010499,2]
[352748672,1739290232739,-500.0,0.00010499,2]
[352748674,1739290232748,-500.0,0.00010499,2]
[352748676,1739290232758,-500.0,0.00010499,2]
[352748678,1739290232768,-500.0,0.00010499,2]
[352748680,1739290232778,-500.0,0.00010499,2]
[352748682,1739290232788,-500.0,0.00010499,2]
[352748684,1739290232797,-500.0,0.00010499,2]
[352748686,1739290232807,-500.0,0.00010499,2]
[352748688,1739290232817,-500.0,0.00010499,2]
[352748689,1739290232827,-500.0,0.00010499,2]
[352748690,1739290232836,-500.0,0.00010499,2]
[352748692,1739290232846,-500.0,0.00010499,2]
[352748694,1739290232855,-500.0,0.00010499,2]
[352748696,1739290232865,-500.0,0.00010499,2]
[352748698,1739290232874,-500.0,0.00010499,2]
[352748700,1739290232883,-500.0,0.00010499,2]
[352748702,1739290232893,-500.0,0.00010499,2]
[352748704,1739290232902,-500.0,0.00010499,2]
[352748706,1739290232912,-500.0,0.00010499,2]
[352748708,1739290232921,-500.0,0.00010499,2]
[352748710,1739290232931,-500.0,0.00010499,2]
[352748712,1739290232941,-555.0,0.00010499,2]
[352748714,1739290232951,-500.0,0.00010499,2]
[352748716,1739290232963,-500.0,0.00010499,2]
[352748718,1739290232973,-500.0,0.00010499,2]
[352748720,1739290232983,-500.0,0.00010499,2]
[352748721,1739290232993,-500.0,0.00010499,2]
[352748722,1739290233004,-500.0,0.00010499,2]
[352748724,1739290233017,-500.0,0.00010499,2]
[352748726,1739290233028,-500.0,0.00010499,2]
[352748728,1739290233040,-500.0,0.00010499,2]
[352748730,1739290233052,-500.0,0.00010499,2]
[352748732,1739290233063,-500.0,0.00010499,2]
[352748734,1739290233074,-500.0,0.00010499,2]
[352748736,1739290233085,-500.0,0.00010499,2]
[352748738,1739290233095,-500.0,0.00010499,2]
[352748740,1739290233106,-500.0,0.00010499,2]
[352748742,1739290233115,-534.59211831,0.00010499,2]
[352748744,1739290233125,-500.0,0.00010499,2]
[352748746,1739290233135,-220444.07835096,0.000105,2]
[352748748,1739290233149,-18367.26359119,0.000105,2]
[352748750,1739290233161,-832.28218044,0.000105,2]
[352748809,1739290238073,-885.83574445,0.000105,2]
[352748810,1739290238084,-4306.5123552,0.000105,2]
[352748811,1739290238097,-23495.38265243,0.000105,2]
[352748812,1739290238107,-1000.0,0.000105,2]
[352748813,1739290238117,-40832.52734337,0.000105,3]
[352748814,1739290238126,-1000.0,0.000105,2]
[352748815,1739290238135,-154.6189857,0.000105,2]
[352748816,1739290238145,-154.6189857,0.000105,2]
[352748817,1739290238154,-157.216991,0.000105,2]
[352748818,1739290238163,-153.0,0.00010548,2]
[352748819,1739290238173,-154.6189857,0.00010548,2]
[352748820,1739290238183,-154.6189857,0.00010548,2]
[352748821,1739290238193,-154.6189857,0.00010548,2]
[352748822,1739290238203,-153.6737265,0.00010548,2]
[352748823,1739290238212,-396.0,0.00010663,2]
[352748825,1739290238222,-400.0,0.00010685,2]
[352748827,1739290238231,-215.860309,0.000107,2]
[352748828,1739290238241,-154.6189857,0.000107,2]
[352748829,1739290238251,-215.860309,0.000107,2]
[352748830,1739290238261,-154.6189857,0.000107,2]
[352748831,1739290238270,-575.5,0.000108,2]
[352748832,1739290238283,-13031.41316134,0.00010805,2]
[352748833,1739290238292,-167.21,0.00010896,2]
[352748834,1739290238302,-641.0,0.000109,3]
[352748835,1739290238311,-500.0,0.00010957,2]
[352748836,1739290238321,-584.35523554,0.00010957,2]
[352748837,1739290238330,-12715.99329419,0.00010958,2]
[352748838,1739290238339,-500.0,0.00010958,2]
[352748839,1739290238349,-190.3292511,0.00010958,2]
[352748840,1739290238358,-501.67170181,0.00010958,2]
[352748841,1739290238370,-500.78094237,0.00010958,2]
[352748842,1739290238379,-500.57480034,0.00010958,2]
[352748843,1739290238388,-500.0,0.00010958,2]
[352748844,1739290238399,-500.0,0.00010958,2]
[352748845,1739290238408,-500.0,0.00010958,2]
[352748846,1739290238418,-500.0,0.00010958,2]
[352748847,1739290238427,-475.51944195,0.00010958,2]
[352748848,1739290238437,-350.55564562,0.00010958,2]
[352748849,1739290238447,-500.0,0.00010958,2]
[352748850,1739290238457,-274.06303025,0.00010958,2]
[352748851,1739290238470,-225.93696975,0.00010958,2]
[352748852,1739290238479,-354.00103025,0.00010958,2]
[352748857,1739290240196,-188.99245817,0.00010499,2]
[352748858,1739290240206,-133.91425597,0.00010958,2]
[352748869,1739290240380,-12.08471378,0.00010958,2]
[352748870,1739290240390,-500.0,0.00010958,2]
[352748871,1739290240400,-500.48680402,0.00010958,2]
[352748872,1739290240410,-500.0,0.00010958,2]
[352748873,1739290240420,-500.0,0.00010958,2]
[352748874,1739290240431,-500.72402134,0.00010958,2]
[352748875,1739290240441,-500.0,0.00010958,2]
[352748876,1739290240450,-500.0,0.00010958,2]
[352748877,1739290240459,-500.0,0.00010958,2]
[352748878,1739290240469,-500.0,0.00010958,2]
[352748879,1739290240480,-500.0,0.00010958,2]
[352748880,1739290240489,-500.0,0.00010958,2]
[352748881,1739290240499,-500.0,0.00010958,2]
[352748882,1739290240508,-500.0,0.00010958,2]
[352748883,1739290240517,-500.0,0.00010958,2]
[352748884,1739290240527,-552.98221707,0.00010958,2]
[352748885,1739290240539,-502.08902663,0.00010958,2]
[352748886,1739290240549,-500.0,0.00010958,2]
[352748887,1739290240558,-173.18577937,0.00010958,2]
[352748888,1739290240568,-500.31375197,0.00010958,2]
[352748889,1739290240577,-500.0,0.00010958,2]
[352748890,1739290240588,-500.0,0.00010958,2]
[352748891,1739290240605,-500.0,0.00010958,2]
[352748892,1739290240615,-500.0,0.00010958,2]
[352748893,1739290240625,-500.0,0.00010958,2]
[352748894,1739290240635,-500.0,0.00010958,2]
[352748895,1739290240647,-647.40567706,0.00010958,2]
[352748896,1739290240656,-500.0,0.00010958,2]
[352748897,1739290240667,-500.0,0.00010958,2]
[352748898,1739290240677,-541.24642437,0.00010958,2]
[352748899,1739290240686,-500.63205692,0.00010958,2]
[352748900,1739290240696,-500.0,0.00010958,2]
[352748901,1739290240706,-500.0,0.00010958,2]
[352748902,1739290240716,-500.69419023,0.00010958,2]
[352748903,1739290240726,-500.0,0.00010958,2]
[352748904,1739290240736,-500.0,0.00010958,2]
[352748905,1739290240745,-500.0,0.00010958,2]
[352748906,1739290240755,-500.0,0.00010958,2]
[352748907,1739290240766,-500.0,0.00010958,2]
[352748908,1739290240776,-500.0,0.00010958,2]
[352748909,1739290240789,-500.0,0.00010958,2]
[352748910,1739290240798,-500.0,0.00010958,2]
[352748911,1739290240808,-623.8491984,0.00010958,2]
[352748912,1739290240818,-500.0,0.00010958,2]
[352748913,1739290240828,-604.78941811,0.00010958,2]
[352748914,1739290240838,-500.0,0.00010958,2]
[352748915,1739290240848,-500.0,0.00010958,2]
[352748916,1739290240858,-500.0,0.00010958,2]
[352748917,1739290240868,-500.0,0.00010958,2]
[352748918,1739290240877,-500.0,0.00010958,2]
[352748919,1739290240887,-448.57266351,0.00010958,2]
[352748920,1739290240897,-500.0,0.00010958,2]
[352748921,1739290240906,-500.0,0.00010958,2]
[352748922,1739290240916,-500.0,0.00010958,2]
[352748923,1739290240926,-500.7081144,0.00010958,2]
[352748924,1739290240935,-150.87200808,0.00010958,2]
[352748925,1739290240944,-344.08271797,0.00010958,2]
[352748926,1739290240954,-501.26928436,0.00010958,2]
[352748927,1739290240964,-500.0,0.00010958,2]
[352748928,1739290240980,-500.0,0.00010958,2]
[352748929,1739290240990,-500.0,0.00010958,2]
[352748930,1739290241000,-500.0,0.00010958,2]
[352748931,1739290241011,-500.0,0.00010958,2]
[352748932,1739290241024,-502.75084783,0.00010958,2]
[352748933,1739290241035,-500.0,0.00010958,2]
[352748934,1739290241046,-500.0,0.00010958,2]
[352748935,1739290241055,-500.0,0.00010958,2]
[352748936,1739290241065,-501.97700401,0.00010958,2]
[352748937,1739290241074,-500.0,0.00010958,2]
[352748938,1739290241084,-500.0,0.00010958,2]
[352748939,1739290241094,-500.0,0.00010958,2]
[352748940,1739290241105,-500.0,0.00010958,2]
[352748941,1739290241115,-502.01419644,0.00010958,2]
[352748942,1739290241124,-502.18413455,0.00010958,2]
[352748943,1739290241134,-500.0,0.00010958,2]
[352748944,1739290241144,-500.0,0.00010958,2]
[352748945,1739290241157,-500.0,0.00010958,2]
[352748946,1739290241167,-500.0,0.00010958,2]
[352748947,1739290241176,-536.11,0.00010958,2]
[352748948,1739290241185,-500.0,0.00010958,2]
[352748949,1739290241195,-500.0,0.00010958,2]
[352748950,1739290241204,-500.0,0.00010958,2]
[352748951,1739290241214,-500.0,0.00010958,2]
[352748952,1739290241223,-665.5,0.00010958,2]
[352748953,1739290241233,-500.0,0.00010958,2]
[352748954,1739290241243,-500.0,0.00010958,2]
[352748955,1739290241252,-500.0,0.00010958,2]
[352748956,1739290241261,-500.0,0.00010958,2]
[352748957,1739290241271,-500.0,0.00010958,2]
[352748958,1739290241282,-500.0,0.00010958,2]
[352748959,1739290241293,-500.0,0.00010958,2]
[352748960,1739290241303,-780.33,0.00010958,2]
[352748961,1739290241313,-500.0,0.00010958,2]
[352748962,1739290241323,-500.0,0.00010958,2]
[352748963,1739290241333,-719.57,0.00010958,2]
[352748964,1739290241342,-500.88703629,0.00010958,2]
[352748965,1739290241352,-500.0,0.00010958,2]
[352748966,1739290241361,-500.0,0.00010958,2]
[352748967,1739290241372,-500.0,0.00010958,2]
[352748968,1739290241382,-500.0,0.00010958,2]
[352748969,1739290241392,-500.0,0.00010958,2]
[352748970,1739290241402,-500.0,0.00010958,2]
[352748971,1739290241411,-536.12165288,0.00010958,2]
[352748972,1739290241421,-500.0,0.00010958,2]
[352748973,1739290241431,-500.0,0.00010958,2]
[352748974,1739290241440,-642.4,0.00010958,2]
[352748975,1739290241450,-500.0,0.00010958,2]
[352748976,1739290241460,-500.0,0.00010958,2]
[352748977,1739290241470,-500.0,0.00010958,2]
[352748978,1739290241479,-593.1217912,0.00010958,2]
[352748979,1739290241488,-500.0,0.00010958,2]
[352748980,1739290241497,-749.15,0.00010958,2]
[352748981,1739290241506,-500.0,0.00010958,2]
[352748982,1739290241516,-500.0,0.00010958,2]
[352748983,1739290241526,-500.0,0.00010958,2]
[352748984,1739290241538,-500.0,0.00010958,2]
[352748985,1739290241548,-500.0,0.00010958,2]
[352748986,1739290241559,-1878.87,0.00010958,2]
[352748987,1739290241569,-500.0,0.00010958,2]
[352748988,1739290241584,-566.89,0.00010958,2]
[352748989,1739290241594,-502.43674304,0.00010958,2]
[352748990,1739290241604,-500.0,0.00010958,2]
[352748991,1739290241614,-500.0,0.00010958,2]
[352748992,1739290241624,-500.0,0.00010958,2]
[352748993,1739290241633,-187.47470309,0.00010958,2]
[352748994,1739290241644,-500.0,0.00010958,2]
[352748995,1739290241654,-500.0,0.00010958,2]
[352748996,1739290241664,-500.0,0.00010958,2]
[352748997,1739290241674,-500.0,0.00010958,2]
[352748998,1739290241684,-569.23,0.00010958,2]
[352748999,1739290241694,-1249.57,0.00010958,2]
[352749000,1739290241704,-505.64572605,0.00010958,2]
[352749001,1739290241714,-501.12541733,0.00010958,2]
[352749002,1739290241723,-500.0,0.00010958,2]
[352749003,1739290241733,-500.0,0.00010958,2]
[352749004,1739290241743,-1072.91,0.00010958,2]
[352749005,1739290241753,-500.0,0.00010958,2]
[352749006,1739290241764,-500.0,0.00010958,2]
[352749007,1739290241774,-500.0,0.00010958,2]
[352749008,1739290241783,-500.0,0.00010958,2]
[352749009,1739290241793,-500.0,0.00010958,2]
[352749010,1739290241803,-500.0,0.00010958,2]
[352749011,1739290241812,-500.0,0.00010958,2]
[352749012,1739290241822,-433.79958872,0.00010958,2]
[352749013,1739290241832,-500.0,0.00010958,2]
[352749014,1739290241841,-508.53,0.00010958,2]
[352749015,1739290241851,-500.0,0.00010958,2]
[352749016,1739290241860,-500.0,0.00010958,2]
[352749017,1739290241870,-365.84679068,0.00010958,2]
[352749018,1739290241880,-500.0,0.00010958,2]
[352749019,1739290241889,-566.31,0.00010958,2]
[352749020,1739290241900,-500.0,0.00010958,2]
[352749021,1739290241910,-500.0,0.00010958,2]
[352749022,1739290241919,-1724.04,0.00010958,2]
[352749023,1739290241929,-500.0,0.00010958,2]
[352749024,1739290241939,-500.0,0.00010958,2]
[352749025,1739290241949,-3076.7,0.00010958,2]
[352749026,1739290241959,-500.0,0.00010958,2]
[352749027,1739290241968,-500.0,0.00010958,2]
[352749028,1739290241977,-500.0,0.00010958,2]
[352749029,1739290241987,-508.04654616,0.00010958,2]
[352749030,1739290241997,-1578.58,0.00010958,2]
[352749031,1739290242007,-500.0,0.00010958,2]
[352749032,1739290242019,-500.0,0.00010958,2]
[352749033,1739290242028,-2860.91,0.00010958,2]
[352749034,1739290242039,-500.0,0.00010958,2]
[352749035,1739290242049,-500.0,0.00010958,2]
[352749036,1739290242059,-500.0,0.00010958,2]
[352749037,1739290242069,-500.0,0.00010958,2]
[352749038,1739290242079,-500.0,0.00010958,2]
[352749039,1739290242089,-500.0,0.00010958,2]
[352749040,1739290242100,-511.13109495,0.00010958,2]
[352749041,1739290242110,-500.0,0.00010958,2]
[352749042,1739290242120,-500.0,0.00010958,2]
[352749043,1739290242130,-1544.16,0.00010958,2]
[352749044,1739290242140,-6635.33,0.00010958,2]
[352749045,1739290242149,-500.0,0.00010958,2]
[352749046,1739290242159,-226.81213273,0.00010958,2]
[352749047,1739290242169,-330.98766199,0.00010958,2]
[352749048,1739290242178,-2010.53,0.00010958,2]
[352749049,1739290242187,-500.0,0.00010958,2]
[352749050,1739290242196,-500.0,0.00010958,2]
[352749051,1739290242205,-500.0,0.00010958,2]
[352749052,1739290242214,-595.17,0.00010958,2]
[352749053,1739290242223,-656.75,0.00010958,2]
[352749054,1739290242233,-500.0,0.00010958,2]
[352749055,1739290242242,-1064.59,0.00010958,2]
[352749056,1739290242251,-608.9,0.00010958,2]
[352749057,1739290242260,-811.82,0.00010958,2]
[352749058,1739290242269,-500.0,0.00010958,2]
[352749059,1739290242279,-21570.02,0.00010958,2]
[352749060,1739290242292,-500.0,0.00010958,2]
[352749061,1739290242302,-500.0,0.00010958,2]
[352749062,1739290242311,-580.54,0.00010958,2]
[352749063,1739290242320,-10187.59,0.00010958,2]
[352749064,1739290242329,-824.05,0.00010958,2]
[352749065,1739290242338,-500.0,0.00010958,2]
[352749066,1739290242348,-500.0,0.00010958,2]
[352749067,1739290242358,-1158.56,0.00010958,2]
[352749068,1739290242367,-1153.03,0.00010958,2]
[352749069,1739290242377,-510.96,0.00010958,2]
[352749070,1739290242386,-718.05,0.00010958,2]
[352749071,1739290242396,-500.0,0.00010958,2]
[352749072,1739290242405,-1379.76,0.00010958,2]
[352749073,1739290242414,-1510.63,0.00010958,2]
[352749074,1739290242423,-568.68,0.00010958,2]
[352749075,1739290242432,-2017.37,0.00010958,2]
[352749076,1739290242443,-500.0,0.00010958,2]
[352749077,1739290242452,-500.0,0.00010958,2]
[352749078,1739290242462,-500.0,0.00010958,2]
[352749079,1739290242472,-500.0,0.00010958,2]
[352749080,1739290242481,-500.0,0.00010958,2]
[352749081,1739290242491,-861.28,0.00010958,2]
[352749082,1739290242500,-610.23,0.00010958,2]
[352749083,1739290242510,-500.0,0.00010958,2]
[352749084,1739290242520,-986.99,0.00010958,2]
[352749085,1739290242529,-500.0,0.00010958,2]
[352749086,1739290242540,-3640.76,0.00010958,2]
[352749087,1739290242549,-500.0,0.00010958,2]
[352749088,1739290242558,-542.97,0.00010958,2]
[352749090,1739290242567,-500.0,0.00010958,2]
[352749091,1739290242576,-987.91,0.00010958,2]
[352749092,1739290242585,-500.0,0.00010958,2]
[352749093,1739290242595,-500.0,0.00010958,2]
[352749094,1739290242604,-500.0,0.00010958,2]
[352749095,1739290242615,-584.13,0.00010958,2]
[352749096,1739290242625,-151.0,0.00010959,2]
[352749097,1739290242637,-151.0,0.00010959,2]
[352749098,1739290242646,-151.0,0.00010959,2]
[352749099,1739290242657,-151.0,0.00010959,2]
[352749100,1739290242667,-151.0,0.00010959,2]
[352749102,1739290242676,-151.0,0.00010959,2]
[352749104,1739290242686,-151.0,0.00010959,2]
[352749106,1739290242696,-151.0,0.00010959,2]
[352749107,1739290242705,-151.0,0.00010959,2]
[352749109,1739290242715,-463.227503,0.00010959,2]
[352749110,1739290242724,-463.227503,0.00010959,2]
[352749111,1739290242734,-151.0,0.00010959,2]
[352749112,1739290242743,-265.815441,0.00010959,2]
[352749113,1739290242752,-205.3,0.00010959,2]
[352749114,1739290242761,-42806.99298618,0.00010959,2]
[352749116,1739290242771,-151.0,0.00010959,2]
[352749117,1739290242780,-151.0,0.00010959,2]
[352749118,1739290242792,-151.0,0.00010959,2]
[352749119,1739290242801,-392.251054,0.00010959,2]
[352749120,1739290242811,-392.251054,0.00010959,2]
[352749121,1739290242820,-282.70958577,0.00010959,2]
[352749122,1739290242830,-151.0,0.00010959,2]
[352749123,1739290242841,-151.0,0.00010959,2]
[352749124,1739290242851,-151.0,0.00010959,2]
[352749125,1739290242861,-151.0,0.00010959,2]
[352749126,1739290242871,-151.410202,0.00010959,2]
[352749127,1739290242880,-513.402601,0.00010959,2]
[352749128,1739290242889,-513.402601,0.00010959,2]
[352749129,1739290242899,-151.0,0.00010959,2]
[352749130,1739290242909,-151.0,0.00010959,2]
[352749131,1739290242918,-151.0,0.00010959,2]
[352749132,1739290242927,-151.0,0.00010971,2]
[352749133,1739290242937,-151.0,0.00010971,2]
[352749134,1739290242947,-200.898868,0.00010971,2]
[352749135,1739290242956,-151.0,0.00010971,2]
[352749136,1739290242966,-392.251054,0.00010971,2]
[352749137,1739290242976,-392.251054,0.00010971,2]
[352749138,1739290242986,-151.0,0.00010971,2]
[352749139,1739290242996,-151.0,0.00010971,2]
[352749140,1739290243006,-513.402601,0.00010971,2]
[352749141,1739290243020,-513.402601,0.00010971,2]
[352749143,1739290243030,-151.0,0.00010972,2]
[352749144,1739290243040,-151.0,0.00010972,2]
[352749145,1739290243050,-151.0,0.00010972,2]
[352749146,1739290243061,-267.88471016,0.00010973,2]
[352749147,1739290243071,-500.0,0.00010973,2]
[352749148,1739290243081,-500.0,0.00010973,2]
[352749150,1739290243090,-151.0,0.00010978,2]
[352749151,1739290243101,-226.505908,0.00010978,2]
[352749153,1739290243110,-150.0,0.00010978,2]
[352749155,1739290243120,-1970.0,0.00010978,2]
[352749157,1739290243129,-538.0,0.00010978,2]
[352749159,1739290243139,-2296.0,0.00010978,2]
[352749162,1739290243149,-1081.21629095,0.0001098,2]
[352749163,1739290243158,-10000.0,0.00011,2]
[352749166,1739290243168,-15371.87377445,0.00011,2]
[352749168,1739290243177,-3939.68065788,0.00011,2]
[352749170,1739290243194,-3655.54099317,0.00011,2]
[352749173,1739290243206,-19809.07080145,0.00011,2]
[352749187,1739290243337,-615.29888994,0.00011,2]
[352749189,1739290243348,-625.38605987,0.00011,2]
[352749191,1739290243360,-1397.04843376,0.00011,2]
[352749193,1739290243370,-151.0,0.00011,2]
[352749195,1739290243379,-151.0,0.00011,2]
[352749197,1739290243389,-151.0,0.00011,2]
[352749199,1739290243399,-489.301,0.00011,2]
[352749201,1739290243409,-151.0,0.00011,2]
[352749203,1739290243418,-151.0,0.00011,2]
[352749205,1739290243428,-392.251054,0.00011,2]
[352749207,1739290243437,-392.251054,0.00011,2]
[352749209,1739290243447,-151.0,0.00011,2]
[352749211,1739290243456,-150.92845823,0.00011,2]
[352749213,1739290243580,-43.42751077,0.00011,2]
[352749214,1739290243589,-463.227503,0.00011,2]
[352749215,1739290243599,-463.227503,0.00011,2]
[352749216,1739290243608,-152.582631,0.00011,2]
[352749217,1739290243617,-151.0,0.00011,2]
[352749218,1739290243626,-513.402601,0.00011,2]
[352749219,1739290243635,-513.402601,0.00011,2]
[352749220,1739290243645,-151.0,0.00011,2]
[352749221,1739290243655,-151.0,0.00011,2]
[352749222,1739290243664,-165.8553,0.00011007,4]
[352749223,1739290243673,-177.03323,0.00011062,2]
[352749224,1739290243682,-151.0,0.00011062,2]
[352749226,1739290243692,-151.0,0.00011062,2]
[352749228,1739290243706,-151.0,0.00011062,2]
[352749230,1739290243715,-500.0,0.00011095,2]
[352749232,1739290243725,-151.0,0.00011095,2]
[352749235,1739290243735,-151.0,0.00011095,2]
[352749236,1739290243744,-500.0,0.00011095,2]
[352749238,1739290243754,-151.0,0.00011095,2]
[352749240,1739290243763,-151.0,0.00011095,2]
[352749242,1739290243772,-151.0,0.00011095,2]
[352749244,1739290243781,-151.0,0.00011095,2]
[352749246,1739290243791,-151.0,0.00011095,2]
[352749249,1739290243801,-151.0,0.00011095,2]
[352749250,1739290243810,-151.0,0.00011095,2]
[352749252,1739290243819,-500.0,0.00011095,2]
[352749255,1739290243828,-500.0,0.00011095,2]
[352749257,1739290243839,-561.86573152,0.00011095,2]
[352749259,1739290243848,-500.0,0.00011095,2]
[352749261,1739290243858,-500.0,0.00011095,2]
[352749263,1739290243867,-500.0,0.00011095,2]
[352749265,1739290243876,-466.55137518,0.00011095,2]
[352749267,1739290243885,-536.11,0.00011095,2]
[352749269,1739290243895,-500.0,0.00011095,2]
[352749283,1739290244009,-151.0,0.00011095,2]
[352749285,1739290244034,-154.310338,0.00011095,2]
[352749287,1739290244044,-665.5,0.00011095,2]
[352749289,1739290244054,-500.0,0.00011095,2]
[352749291,1739290244063,-500.0,0.00011095,2]
[352749293,1739290244073,-500.0,0.00011095,2]
[352749295,1739290244082,-500.0,0.00011095,2]
[352749297,1739290244093,-500.0,0.00011095,2]
[352749299,1739290244102,-780.33,0.00011095,2]
[352749301,1739290244111,-392.251054,0.00011095,2]
[352749303,1739290244120,-392.251054,0.00011095,2]
[352749305,1739290244129,-392.251054,0.00011095,2]
[352749307,1739290244138,-392.251054,0.00011095,2]
[352749309,1739290244147,-173.95305646,0.00011095,2]
[352749311,1739290244156,-719.57,0.00011095,2]
[352749313,1739290244166,-500.0,0.00011095,2]
[352749315,1739290244175,-500.0,0.00011095,2]
[352749317,1739290244184,-500.0,0.00011095,2]
[352749319,1739290244194,-500.0,0.00011095,2]
[352749321,1739290244203,-500.0,0.00011095,2]
[352749323,1739290244212,-500.0,0.00011095,2]
[352749325,1739290244221,-642.4,0.00011095,2]
[352749327,1739290244231,-500.0,0.00011095,2]
[352749329,1739290244240,-500.0,0.00011095,2]
[352749331,1739290244249,-500.0,0.00011095,2]
[352749333,1739290244258,-463.227503,0.00011095,2]
[352749335,1739290244268,-463.227503,0.00011095,2]
[352749337,1739290244277,-500.0,0.00011095,2]
[352749339,1739290244288,-749.15,0.00011095,2]
[352749341,1739290244297,-500.0,0.00011095,2]
[352749343,1739290244307,-500.0,0.00011095,2]
[352749345,1739290244316,-500.0,0.00011095,2]
[352749347,1739290244326,-632.63377869,0.00011095,2]
[352749350,1739290244338,-1246.23622131,0.00011095,2]
[352749352,1739290244348,-566.89,0.00011095,2]
[352749354,1739290244357,-500.0,0.00011095,2]